lending/lending_fUSD_20250122
["ID","MTS","AMOUNT","RATE_DAILY","PERIOD"]
[349953967,1737534655506,-695.5,0.00020542,2]
[349953968,1737534655521,-923.7,0.00020542,2]
[349953969,1737534655530,-500.0,0.00020542,2]
[349953970,1737534655539,-3018.93,0.00020542,2]
[349953971,1737534655548,-500.0,0.00020542,2]
[349953972,1737534655559,-500.0,0.00020542,2]
[349953973,1737534655568,-500.0,0.00020542,2]
[349953974,1737534655577,-708.43,0.00020542,2]
[349953975,1737534655587,-2798.83,0.00020542,2]
[349953976,1737534655597,-1275.81,0.00020542,2]
[349953977,1737534655606,-952.33,0.00020542,2]
[349953978,1737534655616,-500.0,0.00020542,2]
[349953979,1737534655626,-679.69,0.00020542,2]
[349953980,1737534655637,-1367.21,0.00020542,2]
[349953981,1737534655648,-1822.07,0.00020542,2]
[349953982,1737534655661,-500.0,0.00020542,2]
[349953983,1737534655672,-500.0,0.00020542,2]
[349953984,1737534655682,-579.19,0.00020542,2]
[349953985,1737534655692,-1523.71,0.00020542,2]
[349953986,1737534655701,-1989.41,0.00020542,2]
[349953987,1737534655712,-1111.48,0.00020542,2]
[349953988,1737534655721,-500.0,0.00020542,2]
[349953989,1737534655730,-585.36,0.00020542,2]
[349953990,1737534655740,-500.0,0.00020542,2]
[349953991,1737534655751,-969.23,0.00020542,2]
[349953992,1737534655761,-1176.75,0.00020542,2]
[349953993,1737534655770,-2321.67,0.00020542,2]
[349953994,1737534655779,-1016.17,0.00020542,2]
[349953995,1737534655789,-651.97,0.00020542,2]
[349953996,1737534655798,-890.17,0.00020542,2]
[349953997,1737534655807,-1287.3,0.00020542,2]
[349953998,1737534655817,-500.0,0.00020542,2]
[349953999,1737534655829,-505.85764144,0.00020542,2]
[349954000,1737534655840,-500.0,0.00020542,2]
[349954001,1737534655850,-2276.36,0.00020542,2]
[349954002,1737534655862,-2974.96,0.00020542,2]
[349954003,1737534655873,-647.81,0.00020542,2]
[349954004,1737534655894,-500.0,0.00020542,2]
[349954005,1737534655911,-500.0,0.00020542,2]
[349954006,1737534655929,-894.7,0.00020542,2]
[349954007,1737534655949,-2510.85,0.00020542,2]
[349954008,1737534655967,-934.57,0.00020542,2]
[349954009,1737534655981,-500.0,0.00020542,2]
[349954010,1737534655998,-1575.38,0.00020542,2]
[349954011,1737534656017,-3008.08,0.00020542,2]
[349954012,1737534656034,-500.0,0.00020542,2]
[349954013,1737534656053,-713.84,0.00020542,2]
[349954014,1737534656068,-696.86,0.00020542,2]
[349954015,1737534656085,-500.0,0.00020542,2]
[349954016,1737534656101,-500.0,0.00020542,2]
[349954017,1737534656114,-500.0,0.00020542,2]
[349954018,1737534656128,-614.95,0.00020542,2]
[349954019,1737534656145,-2476.15,0.00020542,2]
[349954020,1737534656157,-500.0,0.00020542,2]
[349954021,1737534656174,-515.75,0.00020542,2]
[349954022,1737534656186,-587.21955771,0.00020542,2]
[349954023,1737534656200,-321.41962717,0.00020542,2]
[349954024,1737534656214,-335.15,0.00020542,2]
[349954025,1737534656228,-589.48,0.00020542,2]
[349954026,1737534656242,-500.0,0.00020542,2]
[349954027,1737534656256,-775.02,0.00020543,2]
[349954028,1737534656269,-360.12923064,0.00020543,2]
[349954029,1737534656283,-947.67,0.00020543,2]
[349954030,1737534656298,-1037.53,0.00020543,2]
[349954031,1737534656312,-500.0,0.00020543,2]
[349954032,1737534656327,-700.29,0.00020543,2]
[349954033,1737534656340,-636.14,0.00020543,2]
[349954034,1737534656355,-576.43,0.00020543,2]
[349954035,1737534656369,-500.0,0.00020543,2]
[349954036,1737534656384,-500.0,0.00020543,2]
[349954037,1737534656397,-500.0,0.00020543,2]
[349954038,1737534656411,-500.0,0.00020543,2]
[349954039,1737534656426,-564.75,0.00020543,2]
[349954040,1737534656439,-500.0,0.00020543,2]
[349954041,1737534656453,-500.0,0.00020543,2]
[349954042,1737534656467,-550.57,0.00020543,2]
[349954043,1737534656481,-991.83,0.00020543,2]
[349954044,1737534656498,-1008.4,0.00020543,2]
[349954045,1737534656513,-500.0,0.00020543,2]
[349954046,1737534656531,-500.0,0.00020543,2]
[349954047,1737534656544,-500.0,0.00020543,2]
[349954048,1737534656558,-500.0,0.00020543,2]
[349954049,1737534656574,-500.0,0.00020543,2]
[349954050,1737534656589,-500.0,0.00020543,2]
[349954051,1737534656605,-500.0,0.00020543,2]
[349954052,1737534656620,-694.5,0.00020543,2]
[349954053,1737534656633,-1202.02,0.00020543,2]
[349954054,1737534656648,-1070.48,0.00020543,2]
[349954055,1737534656662,-932.56,0.00020543,2]
[349954056,1737534656677,-560.85,0.00020543,2]
[349954057,1737534656692,-706.83,0.00020543,2]
[349954058,1737534656706,-1361.57,0.00020543,2]
[349954059,1737534656721,-644.06,0.00020543,2]
[349954060,1737534656735,-624.83,0.00020543,2]
[349954061,1737534656749,-796.67,0.00020543,2]
[349954062,1737534656763,-500.0,0.00020543,2]
[349954063,1737534656777,-1438.162394,0.00020543,2]
[349954064,1737534656791,-500.0,0.00020543,2]
[349954065,1737534656805,-1377.23,0.00020543,2]
[349954066,1737534656820,-1229.49,0.00020543,2]
[349954067,1737534656835,-880.9,0.00020543,2]
[349954068,1737534656850,-500.0,0.00020543,2]
[349954069,1737534656866,-500.0,0.00020543,2]
[349954070,1737534656881,-500.0,0.00020543,2]
[349954071,1737534656895,-1013.44,0.00020543,2]
[349954072,1737534656908,-950.86,0.00020543,2]
[349954073,1737534656922,-677.67,0.00020543,2]
[349954074,1737534656936,-948.099067,0.00020543,2]
[349954075,1737534656950,-1398.08,0.00020543,2]
[349954076,1737534656964,-916.72,0.00020543,2]
[349954077,1737534656979,-1072.95,0.00020543,2]
[349954078,1737534656987,-1526.48,0.00020543,2]
[349954079,1737534656997,-698.84,0.00020543,2]
[349954080,1737534657006,-500.0,0.00020543,2]
[349954081,1737534657016,-500.0,0.00020543,2]
[349954082,1737534657025,-615.72,0.00020543,2]
[349954083,1737534657034,-500.0,0.00020543,2]
[349954084,1737534657043,-500.0,0.00020543,2]
[349954085,1737534657053,-1074.97,0.00020543,2]
[349954086,1737534657062,-500.0,0.00020543,2]
[349954087,1737534657071,-500.0,0.00020543,2]
[349954088,1737534657080,-500.0,0.00020543,2]
[349954089,1737534657089,-500.0,0.00020543,2]
[349954090,1737534657098,-500.0,0.00020543,2]
[349954091,1737534657331,-603.53,0.00020543,2]
[349954092,1737534657360,-500.0,0.00020543,2]
[349954093,1737534657373,-1670.42,0.00020543,2]
[349954094,1737534657383,-500.0,0.00020543,2]
[349954095,1737534657392,-500.0,0.00020543,2]
[349954096,1737534657401,-1037.24,0.00020543,2]
[349954097,1737534657410,-500.0,0.00020543,2]
[349954098,1737534657420,-1018.24,0.00020543,2]
[349954099,1737534657429,-500.0,0.00020543,2]
[349954100,1737534657438,-500.0,0.00020543,2]
[349954101,1737534657447,-895.81,0.00020543,2]
[349954102,1737534657456,-1128.14,0.00020543,2]
[349954103,1737534657466,-1063.29,0.00020543,2]
[349954104,1737534657475,-500.0,0.00020543,2]
[349954105,1737534657484,-500.0,0.00020543,2]
[349954106,1737534657494,-1229.9,0.00020543,2]
[349954107,1737534657503,-500.0,0.00020543,2]
[349954108,1737534657514,-910.85,0.00020543,2]
[349954109,1737534657524,-713.75,0.00020543,2]
[349954110,1737534657533,-976.93,0.00020543,2]
[349954111,1737534657543,-500.0,0.00020543,2]
[349954112,1737534657552,-1056.04,0.00020543,2]
[349954113,1737534657562,-500.0,0.00020543,2]
[349954114,1737534657571,-500.0,0.00020543,2]
[349954115,1737534657581,-880.91,0.00020543,2]
[349954116,1737534657593,-542.64,0.00020543,2]
[349954117,1737534657603,-620.06,0.00020543,2]
[349954118,1737534657613,-1345.98,0.00020543,2]
[349954119,1737534657622,-940.54,0.00020543,2]
[349954120,1737534657630,-1177.26,0.00020543,2]
[349954121,1737534657639,-1602.21,0.00020543,2]
[349954122,1737534657648,-500.0,0.00020543,2]
[349954123,1737534657657,-500.0,0.00020543,2]
[349954124,1737534657667,-650.05,0.00020543,2]
[349954125,1737534657676,-2865.39,0.00020543,2]
[349954126,1737534657686,-500.0,0.00020543,2]
[349954127,1737534657695,-1460.66,0.00020543,2]
[349954128,1737534657704,-903.86,0.00020543,2]
[349954129,1737534657714,-910.11,0.00020543,2]
[349954130,1737534657724,-1447.14,0.00020543,2]
[349954131,1737534657733,-2028.26,0.00020543,2]
[349954132,1737534657743,-2040.82,0.00020543,2]
[349954133,1737534657752,-710.66,0.00020543,2]
[349954134,1737534657762,-1247.1,0.00020543,2]
[349954135,1737534657773,-1194.86,0.00020543,2]
[349954136,1737534657783,-999.9,0.00020543,2]
[349954137,1737534657793,-500.0,0.00020543,2]
[349954138,1737534657802,-1111.37,0.00020543,2]
[349954139,1737534657812,-2552.95,0.00020543,2]
[349954140,1737534657823,-1490.37,0.00020543,2]
[349954141,1737534657834,-1149.55,0.00020543,2]
[349954142,1737534657845,-5785.18,0.00020543,2]
[349954143,1737534657856,-634.52,0.00020543,2]
[349954144,1737534657865,-956.77,0.00020543,2]
[349954145,1737534657875,-1268.92,0.00020543,2]
[349954146,1737534657886,-2423.9,0.00020543,2]
[349954147,1737534657895,-500.0,0.00020543,2]
[349954148,1737534657904,-2326.11,0.00020543,2]
[349954149,1737534657914,-775.29,0.00020543,2]
[349954150,1737534657923,-966.49,0.00020543,2]
[349954151,1737534657932,-500.0,0.00020543,2]
[349954152,1737534657942,-3638.14,0.00020543,2]
[349954153,1737534657953,-614.54,0.00020543,2]
[349954154,1737534657962,-657.7,0.00020543,2]
[349954155,1737534657971,-3328.69,0.00020543,2]
[349954156,1737534657981,-5075.84,0.00020543,2]
[349954157,1737534657991,-1598.91,0.00020543,2]
[349954158,1737534658000,-1452.67,0.00020543,2]
[349954159,1737534658010,-500.0,0.00020543,2]
[349954160,1737534658020,-914.4,0.00020543,2]
[349954161,1737534658030,-2138.98,0.00020543,2]
[349954162,1737534658039,-500.0,0.00020543,2]
[349954163,1737534658048,-500.0,0.00020543,2]
[349954164,1737534658058,-506.53,0.00020543,2]
[349954165,1737534658067,-1155.63,0.00020543,2]
[349954166,1737534658077,-500.0,0.00020543,2]
[349954167,1737534658087,-2857.9,0.00020543,2]
[349954168,1737534658096,-1293.83,0.00020543,2]
[349954169,1737534658106,-500.0,0.00020543,2]
[349954170,1737534658114,-3678.54,0.00020543,2]
[349954171,1737534658123,-500.0,0.00020543,2]
[349954172,1737534658132,-3091.61,0.00020543,2]
[349954173,1737534658142,-547.79,0.00020543,2]
[349954174,1737534658151,-3070.73,0.00020543,2]
[349954175,1737534658160,-957.09,0.00020543,2]
[349954176,1737534658170,-853.35,0.00020543,2]
[349954177,1737534658179,-1475.16,0.00020543,2]
[349954178,1737534658188,-676.64,0.00020543,2]
[349954179,1737534658197,-1214.2,0.00020543,2]
[349954180,1737534658207,-693.59,0.00020543,2]
[349954181,1737534658216,-1500.17,0.00020543,2]
[349954182,1737534658225,-500.0,0.00020543,2]
[349954183,1737534658234,-4612.68,0.00020543,2]
[349954184,1737534658243,-500.0,0.00020543,2]
[349954185,1737534658252,-695.39,0.00020543,2]
[349954186,1737534658262,-500.0,0.00020543,2]
[349954187,1737534658273,-999.84,0.00020543,2]
[349954188,1737534658282,-500.0,0.00020543,2]
[349954189,1737534658292,-500.0,0.00020543,2]
[349954190,1737534658302,-2191.68,0.00020543,2]
[349954191,1737534658311,-500.0,0.00020543,2]
[349954192,1737534658320,-533.07,0.00020543,2]
[349954193,1737534658329,-1250.87,0.00020543,2]
[349954194,1737534658340,-500.0,0.00020543,2]
[349954195,1737534658350,-500.0,0.00020543,2]
[349954196,1737534658360,-163.513595,0.00020543,2]
[349954197,1737534658371,-500.0,0.00020543,2]
[349954198,1737534658381,-911.61,0.00020543,2]
[349954199,1737534658391,-500.0,0.00020543,2]
[349954200,1737534658400,-500.0,0.00020543,2]
[349954201,1737534658409,-1011.73,0.00020543,2]
[349954202,1737534658418,-783.63,0.00020543,2]
[349954203,1737534658428,-785.43,0.00020543,2]
[349954204,1737534658437,-665.31,0.00020543,2]
[349954205,1737534658446,-500.0,0.00020543,2]
[349954206,1737534658457,-1768.25,0.00020543,2]
[349954207,1737534658466,-821.28,0.00020543,2]
[349954208,1737534658476,-1086.52,0.00020543,2]
[349954209,1737534658485,-500.0,0.00020543,2]
[349954210,1737534658495,-500.0,0.00020543,2]
[349954211,1737534658504,-587.54,0.00020543,2]
[349954212,1737534658514,-583.26,0.00020543,2]
[349954213,1737534658527,-551.1,0.00020543,2]
[349954214,1737534658538,-500.0,0.00020543,2]
[349954215,1737534658548,-1882.75,0.00020543,2]
[349954216,1737534658557,-1838.57,0.00020543,2]
[349954217,1737534658566,-500.0,0.00020543,2]
[349954218,1737534658575,-500.0,0.00020544,2]
[349954219,1737534658584,-500.0,0.00020544,2]
[349954220,1737534658593,-500.0,0.00020544,2]
[349954221,1737534658604,-500.0,0.00020544,2]
[349954222,1737534658614,-500.0,0.00020544,2]
[349954223,1737534658623,-500.0,0.00020544,2]
[349954224,1737534658632,-500.0,0.00020544,2]
[349954225,1737534658641,-722.82,0.00020544,2]
[349954226,1737534658650,-500.0,0.00020544,2]
[349954227,1737534658660,-1357.12,0.00020544,2]
[349954228,1737534658669,-628.45,0.00020544,2]
[349954229,1737534658678,-846.46,0.00020544,2]
[349954230,1737534658687,-751.94,0.00020544,2]
[349954231,1737534658696,-500.0,0.00020544,2]
[349954232,1737534658705,-500.0,0.00020544,2]
[349954233,1737534658715,-500.0,0.00020544,2]
[349954234,1737534658724,-1535.03,0.00020544,2]
[349954235,1737534658734,-1286.53,0.00020544,2]
[349954236,1737534658743,-1081.56,0.00020544,2]
[349954237,1737534658752,-500.0,0.00020544,2]
[349954238,1737534658762,-500.0,0.00020544,2]
[349954239,1737534658771,-904.23,0.00020544,2]
[349954240,1737534658781,-500.0,0.00020544,2]
[349954241,1737534658792,-500.0,0.00020544,2]
[349954242,1737534658802,-500.0,0.00020544,2]
[349954243,1737534658812,-500.0,0.00020544,2]
[349954244,1737534658822,-600.99,0.00020547,2]
[349954245,1737534658831,-2242.40864827,0.00020555,2]
[349954246,1737534658838,-1545.73220754,0.00020555,2]
[349954247,1737534658847,-205.40745367,0.00020567,2]
[349954248,1737534658857,-676.37,0.00020589,7]
[349954249,1737534658866,-676.37,0.00020589,7]
[349954250,1737534658875,-2948.0,0.00020605,2]
[349954251,1737534658884,-150.665,0.00020605,2]
[349954252,1737534658899,-552.834,0.00020605,2]
[349954253,1737534658908,-3984.0,0.00020605,2]
[349954254,1737534658917,-152.519,0.00020605,2]
[349954255,1737534658928,-3986.259,0.00020605,2]
[349954256,1737534658937,-638.0,0.00020605,2]
[349954257,1737534658947,-1176.0,0.00020605,2]
[349954258,1737534658957,-447.056,0.00020605,2]
[349954259,1737534658968,-205.40745367,0.0002065,2]
[349954260,1737534658977,-1250.6,0.00020652,2]
[349954261,1737534658986,-600.99,0.00020684,2]
[349954262,1737534658995,-150.0,0.000207,4]
[349954263,1737534659005,-150.0,0.000207,4]
[349954264,1737534659014,-259.0,0.000207,2]
[349954265,1737534659023,-2242.40864827,0.00020727,2]
[349954266,1737534659033,-1545.73220754,0.00020728,2]
[349954267,1737534659042,-205.40745367,0.00020733,2]
[349954268,1737534659052,-219.81421845,0.00020738,2]
[349954269,1737534659061,-163.05,0.00020747,2]
[349954270,1737534659071,-5000.0,0.00020776,2]
[349954271,1737534659080,-200.0,0.00020783,2]
[349954272,1737534659089,-200.0,0.00020785,2]
[349954273,1737534659099,-204.8498642,0.0002079,2]
[349954274,1737534659108,-204.8498642,0.00020791,2]
[349954275,1737534659117,-200.0,0.00020792,2]
[349954276,1737534659126,-1027.22951524,0.00020793,2]
[349954277,1737534659135,-639.85829486,0.00020797,2]
[349954278,1737534659145,-1151.39187341,0.00020802,2]
[349954279,1737534659154,-200.0,0.00020802,2]
[349954280,1737534659163,-1737.70838908,0.00020802,2]
[349954281,1737534659174,-200.0,0.00020809,2]
[349954282,1737534659183,-200.0,0.00020811,2]
[349954283,1737534659192,-200.0,0.00020811,2]
[349954284,1737534659201,-1027.22951524,0.00020813,2]
[349954285,1737534659211,-1737.70838908,0.00020815,2]
[349954286,1737534659220,-500.0,0.00020816,2]
[349954287,1737534659230,-500.0,0.00020816,2]
[349954288,1737534659239,-500.0,0.00020816,2]
[349954289,1737534659249,-500.0,0.00020816,2]
[349954290,1737534659258,-500.0,0.00020816,2]
[349954291,1737534659267,-503.79,0.00020816,2]
[349954292,1737534659277,-500.0,0.00020816,2]
[349954293,1737534659286,-371.69743833,0.00020816,2]
[349954294,1737534659295,-852.68,0.00020816,2]
[349954295,1737534659304,-500.0,0.00020816,2]
[349954296,1737534659314,-545.76,0.00020816,2]
[349954297,1737534659323,-581.10217653,0.00020816,2]
[349954298,1737534659332,-500.0,0.00020816,2]
[349954299,1737534659342,-602.67,0.00020816,2]
[349954300,1737534659351,-500.0,0.00020816,2]
[349954301,1737534659361,-563.65427429,0.00020816,2]
[349954302,1737534659370,-500.0,0.00020816,2]
[349954303,1737534659379,-500.0,0.00020816,2]
[349954304,1737534659389,-500.0,0.00020816,2]
[349954305,1737534659398,-500.0,0.00020816,2]
[349954306,1737534659407,-500.0,0.00020816,2]
[349954307,1737534659417,-647.65,0.00020816,2]
[349954308,1737534659428,-500.0,0.00020816,2]
[349954309,1737534659437,-687.02,0.00020816,2]
[349954310,1737534659446,-500.0,0.00020816,2]
[349954311,1737534659456,-500.0,0.00020816,2]
[349954312,1737534659467,-643.26880458,0.00020816,2]
[349954313,1737534659476,-500.0,0.00020816,2]
[349954314,1737534659486,-500.0,0.00020816,2]
[349954315,1737534659495,-500.0,0.00020816,2]
[349954316,1737534659505,-944.8,0.00020816,2]
[349954317,1737534659515,-500.0,0.00020816,2]
[349954318,1737534659529,-500.0,0.00020816,2]
[349954319,1737534659539,-607.92,0.00020816,2]
[349954320,1737534659549,-500.0,0.00020816,2]
[349954321,1737534659559,-380.41517449,0.00020816,2]
[349954322,1737534659569,-500.0,0.00020816,2]
[349954323,1737534659579,-500.0,0.00020816,2]
[349954324,1737534659589,-500.0,0.00020816,2]
[349954325,1737534659600,-500.0,0.00020816,2]
[349954326,1737534659611,-500.0,0.00020816,2]
[349954327,1737534659621,-520.9,0.00020816,2]
[349954328,1737534659631,-500.0,0.00020816,2]
[349954329,1737534659640,-668.54,0.00020816,2]
[349954330,1737534659650,-2520.05,0.00020816,2]
[349954331,1737534659659,-500.0,0.00020816,2]
[349954332,1737534659673,-2961.88,0.00020816,2]
[349954333,1737534659683,-500.0,0.00020816,2]
[349954334,1737534659693,-905.46,0.00020816,2]
[349954335,1737534659703,-5597.14,0.00020816,2]
[349954336,1737534659712,-500.0,0.00020816,2]
[349954337,1737534659722,-500.0,0.00020816,2]
[349954338,1737534659731,-9273.24,0.00020816,2]
[349954339,1737534659740,-1227.0,0.00020816,2]
[349954340,1737534659749,-695.5,0.00020816,2]
[349954341,1737534659758,-923.7,0.00020816,2]
[349954342,1737534659767,-500.0,0.00020816,2]
[349954343,1737534659777,-3018.93,0.00020816,2]
[349954344,1737534659789,-500.0,0.00020816,2]
[349954345,1737534659799,-500.0,0.00020816,2]
[349954346,1737534659810,-500.0,0.00020816,2]
[349954347,1737534659820,-708.43,0.00020816,2]
[349954348,1737534659830,-2798.83,0.00020816,2]
[349954349,1737534659840,-1275.81,0.00020816,2]
[349954350,1737534659849,-952.33,0.00020816,2]
[349954351,1737534659858,-500.0,0.00020816,2]
[349954352,1737534659867,-679.69,0.00020816,2]
[349954353,1737534659877,-1367.21,0.00020816,2]
[349954354,1737534659886,-1822.07,0.00020816,2]
[349954355,1737534659895,-500.0,0.00020816,2]
[349954356,1737534659905,-500.0,0.00020816,2]
[349954357,1737534659915,-579.19,0.00020816,2]
[349954358,1737534659925,-1523.71,0.00020816,2]
[349954359,1737534659935,-1989.41,0.00020816,2]
[349954360,1737534659944,-1111.48,0.00020816,2]
[349954361,1737534659954,-500.0,0.00020816,2]
[349954362,1737534659964,-585.36,0.00020816,2]
[349954363,1737534659974,-500.0,0.00020816,2]
[349954364,1737534659984,-969.23,0.00020816,2]
[349954365,1737534659994,-1176.75,0.00020816,2]
[349954366,1737534660004,-2321.67,0.00020816,2]
[349954367,1737534660013,-1016.17,0.00020816,2]
[349954368,1737534660023,-651.97,0.00020816,2]
[349954369,1737534660033,-890.17,0.00020816,2]
[349954370,1737534660044,-1287.3,0.00020816,2]
[349954371,1737534660054,-500.0,0.00020816,2]
[349954372,1737534660064,-500.0,0.00020816,2]
[349954373,1737534660074,-2276.36,0.00020816,2]
[349954374,1737534660084,-2974.96,0.00020816,2]
[349954375,1737534660093,-647.81,0.00020816,2]
[349954376,1737534660103,-500.0,0.00020816,2]
[349954377,1737534660113,-500.0,0.00020816,2]
[349954378,1737534660122,-894.7,0.00020816,2]
[349954379,1737534660131,-2510.85,0.00020816,2]
[349954380,1737534660140,-934.57,0.00020816,2]
[349954381,1737534660150,-500.0,0.00020816,2]
[349954382,1737534660160,-1575.38,0.00020816,2]
[349954383,1737534660170,-3008.08,0.00020816,2]
[349954384,1737534660182,-500.0,0.00020816,2]
[349954385,1737534660192,-713.84,0.00020816,2]
[349954386,1737534660202,-696.86,0.00020816,2]
[349954387,1737534660212,-500.0,0.00020816,2]
[349954388,1737534660223,-500.0,0.00020816,2]
[349954389,1737534660234,-210.39051572,0.00020816,2]
[349954390,1737534660244,-614.95,0.00020816,2]
[349954391,1737534660255,-2476.15,0.00020816,2]
[349954392,1737534660265,-500.0,0.00020816,2]
[349954393,1737534660275,-515.75,0.00020816,2]
[349954394,1737534660284,-589.48,0.00020816,2]
[349954395,1737534660294,-500.0,0.00020816,2]
[349954396,1737534660305,-205.40745367,0.00020817,2]
[349954397,1737534660315,-775.02,0.00020817,2]
[349954398,1737534660325,-947.67,0.00020817,2]
[349954399,1737534660335,-1037.53,0.00020817,2]
[349954400,1737534660344,-500.0,0.00020817,2]
[349954401,1737534660354,-700.29,0.00020817,2]
[349954402,1737534660365,-636.14,0.00020817,2]
[349954403,1737534660375,-576.43,0.00020817,2]
[349954404,1737534660387,-500.0,0.00020817,2]
[349954405,1737534660397,-500.0,0.00020817,2]
[349954406,1737534660406,-500.0,0.00020817,2]
[349954407,1737534660416,-500.0,0.00020817,2]
[349954408,1737534660430,-564.75,0.00020817,2]
[349954409,1737534660439,-500.0,0.00020817,2]
[349954410,1737534660450,-500.0,0.00020817,2]
[349954411,1737534660460,-550.57,0.00020817,2]
[349954412,1737534660470,-991.83,0.00020817,2]
[349954413,1737534660480,-1008.4,0.00020817,2]
[349954414,1737534660490,-500.0,0.00020817,2]
[349954415,1737534660500,-500.0,0.00020817,2]
[349954416,1737534660509,-500.0,0.00020817,2]
[349954417,1737534660524,-500.0,0.00020817,2]
[349954418,1737534660534,-500.0,0.00020817,2]
[349954419,1737534660544,-500.0,0.00020817,2]
[349954420,1737534660692,-500.0,0.00020817,2]
[349954421,1737534660712,-694.5,0.00020817,2]
[349954422,1737534660722,-1202.02,0.00020817,2]
[349954423,1737534660731,-1070.48,0.00020817,2]
[349954424,1737534660741,-932.56,0.00020817,2]
[349954425,1737534660751,-560.85,0.00020817,2]
[349954426,1737534660760,-706.83,0.00020817,2]
[349954427,1737534660770,-1361.57,0.00020817,2]
[349954428,1737534660779,-644.06,0.00020817,2]
[349954429,1737534660789,-624.83,0.00020817,2]
[349954430,1737534660799,-796.67,0.00020817,2]
[349954431,1737534660809,-500.0,0.00020817,2]
[349954432,1737534660819,-1438.162394,0.00020817,2]
[349954433,1737534660828,-500.0,0.00020817,2]
[349954434,1737534660838,-1377.23,0.00020817,2]
[349954435,1737534660848,-1229.49,0.00020817,2]
[349954436,1737534660857,-880.9,0.00020817,2]
[349954437,1737534660866,-500.0,0.00020817,2]
[349954438,1737534660877,-500.0,0.00020817,2]
[349954439,1737534660886,-500.0,0.00020817,2]
[349954440,1737534660896,-1013.44,0.00020817,2]
[349954441,1737534660905,-950.86,0.00020817,2]
[349954442,1737534660915,-677.67,0.00020817,2]
[349954443,1737534660927,-948.099067,0.00020817,2]
[349954444,1737534660937,-1398.08,0.00020817,2]
[349954445,1737534660946,-916.72,0.00020817,2]
[349954446,1737534660956,-1072.95,0.00020817,2]
[349954447,1737534660966,-1526.48,0.00020817,2]
[349954448,1737534660976,-698.84,0.00020817,2]
[349954449,1737534660985,-500.0,0.00020817,2]
[349954450,1737534660995,-500.0,0.00020817,2]
[349954451,1737534661005,-615.72,0.00020817,2]
[349954452,1737534661015,-500.0,0.00020817,2]
[349954453,1737534661025,-500.0,0.00020817,2]
[349954454,1737534661036,-1074.97,0.00020817,2]
[349954455,1737534661046,-500.0,0.00020817,2]
[349954456,1737534661056,-500.0,0.00020817,2]
[349954457,1737534661066,-500.0,0.00020817,2]
[349954458,1737534661077,-500.0,0.00020817,2]
[349954459,1737534661087,-500.0,0.00020817,2]
[349954460,1737534661097,-603.53,0.00020817,2]
[349954461,1737534661107,-500.0,0.00020817,2]
[349954462,1737534661117,-1670.42,0.00020817,2]
[349954463,1737534661127,-500.0,0.00020817,2]
[349954464,1737534661136,-500.0,0.00020817,2]
[349954465,1737534661145,-1037.24,0.00020817,2]
[349954466,1737534661155,-500.0,0.00020817,2]